bitfinex/quotes_SOLUSD_20260103
["timestamp","ask_amount","ask_price","bid_price","bid_amount"]
[1767399350960,12.40058607,132.62,132.59,0.68584807]
[1767399351138,19.37349946,132.61,132.59,0.68584807]
[1767399351358,12.40058607,132.62,132.59,0.68584807]
[1767399351659,19.37836591,132.61,132.59,0.68584807]
[1767399351848,14.42457473,132.61,132.59,0.68584807]
[1767399353249,13.76,132.61,132.59,0.68584807]
[1767399353963,13.76,132.61,132.59,8.22759988]
[1767399358547,13.76,132.61,132.59,0.68584807]
[1767399360136,0.75340917,132.6,132.58,0.66973594]
[1767399360542,15.18322176,132.61,132.58,0.66973594]
[1767399360744,0.66462711,132.6,132.58,0.66973594]
[1767399361463,0.63462711,132.6,132.57,0.86973594]
[1767399361651,4.07681218,132.6,132.57,0.86973594]
[1767399362364,11.61836352,132.6,132.57,0.86973594]
[1767399362973,0.75340917,132.65,132.57,26.60073987]
[1767399363144,17.20218507,132.63,132.58,3.44218507]
[1767399363345,4.88599237,132.62,132.57,11.18496311]
[1767399363680,0.69039813,132.61,132.57,7.74277804]
[1767399363852,0.75340917,132.6,132.58,0.5]
[1767399368456,1.4438073,132.6,132.57,0.2]
[1767399368664,0.69039813,132.59,132.57,0.2]
[1767399373076,0.69039813,132.59,132.57,7.74315964]
[1767399378165,0.69039813,132.59,132.57,0.2]
[1767399381160,0.69039813,132.57,132.54,7.74442808]
[1767399381364,0.69039813,132.57,132.54,11.18661315]
[1767399381880,0.69039813,132.57,132.54,10.98661315]
[1767399382056,0.69039813,132.57,132.54,7.74442808]
[1767399384463,0.69039813,132.6,132.57,0.2]
[1767399384661,0.69039813,132.6,132.58,3.44218507]
[1767399384871,0.69039813,132.6,132.57,3.64218507]
[1767399386067,0.69039813,132.6,132.57,0.2]
[1767399386377,0.69039813,132.6,132.58,7.54261577]
[1767399387776,0.69039813,132.6,132.57,7.74297951]
[1767399388578,0.69039813,132.6,132.57,7.54297951]
[1767399388763,0.69624682,132.58,132.55,8.24392725]
[1767399388970,0.69624682,132.58,132.55,7.74392725]
[1767399390787,14.4737018,132.59,132.56,0.2]
[1767399391195,0.7137018,132.58,132.55,11.18611232]
[1767399392490,0.7137018,132.58,132.55,9.94751808]
[1767399392864,0.7137018,132.58,132.55,7.54392725]
[1767399393569,0.7137018,132.58,132.55,7.74392725]
[1767399394968,13.76,132.59,132.56,0.2]
[1767399394969,14.4737018,132.59,132.56,0.2]
[1767399395368,0.7137018,132.61,132.57,2.40359083]
[1767399395581,10.72584975,132.6,132.58,2.40359083]
[1767399395770,0.7137018,132.61,132.58,2.40359083]
[1767399395968,10.72468729,132.6,132.57,2.40359083]
[1767399396169,0.7137018,132.61,132.57,2.40359083]
[1767399396371,10.72518002,132.6,132.57,2.40359083]
[1767399396583,0.7137018,132.61,132.57,9.94639302]
[1767399396887,10.7253725,132.6,132.57,9.94639302]
[1767399397086,0.7137018,132.61,132.57,9.94639302]
[1767399397289,10.7253725,132.6,132.57,9.94639302]
[1767399397587,0.7137018,132.61,132.58,0.2]
[1767399397783,0.7137018,132.62,132.58,0.2]
[1767399397981,11.43909949,132.61,132.58,2.40359083]
[1767399398179,0.7137018,132.61,132.58,2.40359083]
[1767399398378,0.7137018,132.61,132.58,0.2]
[1767399398678,0.7137018,132.61,132.58,7.54251404]
[1767399399971,0.7137018,132.61,132.59,0.5]
[1767399400167,5.6454168,132.6,132.59,0.5]
[1767399401181,11.44043011,132.6,132.57,0.2]
[1767399401393,0.7137018,132.6,132.57,0.2]
[1767399405481,0.7137018,132.6,132.56,9.74700352]
[1767399405685,0.7137018,132.58,132.56,7.54341269]
[1767399406683,0.7137018,132.58,132.55,9.74766277]
[1767399409581,0.7137018,132.58,132.55,7.54407194]
[1767399411412,0.7137018,132.57,132.54,0.2]
[1767399412096,0.7137018,132.57,132.54,7.74473425]
[1767399418495,0.7137018,132.57,132.54,7.54473425]
[1767399419894,0.6837018,132.57,132.54,7.54473425]
[1767399420485,9.74691658,132.57,132.53,7.74543542]
[1767399420907,2.20359083,132.56,132.53,0.2]
[1767399421092,12.93538541,132.56,132.53,0.2]
[1767399421290,2.20359083,132.56,132.53,0.2]
[1767399421903,0.71966067,132.55,132.53,0.2]
[1767399423484,0.71966067,132.55,132.53,7.74541945]
[1767399435619,0.71966067,132.55,132.53,0.2]
[1767399440218,2.9232515,132.55,132.53,0.2]
[1767399440424,0.71966067,132.55,132.53,0.2]
[1767399440822,2.9232515,132.55,132.53,0.2]
[1767399443032,2.9232515,132.55,132.53,7.74545657]
[1767399443526,0.71966067,132.54,132.53,0.2]
[1767399444225,2.9232515,132.54,132.53,0.2]
[1767399444729,2.9232515,132.54,132.52,0.2]
[1767399445803,2.9232515,132.54,132.52,7.74595152]
[1767399447614,0.71966067,132.55,132.52,7.97595152]
[1767399448615,0.68264656,132.54,132.52,7.97595152]
[1767399449736,0.68264656,132.54,132.52,7.74595152]
[1767399450537,0.68264656,132.54,132.52,0.2]
[1767399451716,2.88623739,132.54,132.52,0.2]
[1767399452532,4.12857218,132.54,132.52,0.2]
[1767399454239,0.70742125,132.53,132.52,0.2]
[1767399454450,4.15334687,132.53,132.52,0.2]
[1767399455823,3.44592562,132.53,132.52,0.2]
[1767399456948,0.70742125,132.52,132.51,0.2]
[1767399457239,4.15334687,132.53,132.51,0.2]
[1767399457740,3.44592562,132.53,132.51,0.63]
[1767399458946,4.15334687,132.53,132.51,0.63]
[1767399459445,0.70742125,132.53,132.51,0.63]
[1767399459640,17.93334687,132.55,132.52,0.43]
[1767399459838,0.70742125,132.54,132.51,8.17605936]
[1767399466256,4.15334687,132.54,132.51,8.17605936]
[1767399466751,0.70742125,132.53,132.51,8.17605936]
[1767399466952,4.15334687,132.54,132.51,8.17605936]
[1767399468432,3.44592562,132.54,132.51,8.17605936]
[1767399468632,0.70742125,132.54,132.51,8.17605936]
[1767399473954,13.78,132.55,132.53,0.43]
[1767399474154,10.73972242,132.54,132.52,7.97590375]
[1767399474355,14.48742125,132.55,132.52,7.97590375]
[1767399474550,10.73995544,132.54,132.52,7.97590375]
[1767399474758,14.48742125,132.55,132.52,7.97590375]
[1767399474934,10.73995544,132.54,132.52,7.97590375]
[1767399475139,0.70742125,132.54,132.51,7.74644592]
[1767399476858,0.70742125,132.54,132.51,8.17644592]
[1767399479455,0.70742125,132.54,132.51,7.74644592]
[1767399479660,6.3168714,132.53,132.51,7.74644592]
[1767399479958,0.66292245,132.53,132.51,7.74644592]
[1767399480361,0.66292245,132.54,132.51,8.17644592]
[1767399480554,5.65430518,132.53,132.51,8.17644592]
[1767399480864,0.66292245,132.54,132.51,8.17644592]
[1767399483749,0.66292245,132.52,132.51,0.2]
[1767399484064,0.66292245,132.54,132.51,11.62239083]
[1767399484248,7.00859201,132.58,132.54,0.43]
[1767399484436,10.74376456,132.57,132.55,3.44592562]
[1767399484642,0.66292245,132.61,132.56,3.44592562]
[1767399484962,0.66292245,132.61,132.58,3.44592562]
[1767399485152,0.66292245,132.61,132.54,13.78]
[1767399485344,0.66292245,132.6,132.56,3.44592562]
[1767399485763,0.66292245,132.6,132.57,7.54318473]
[1767399486141,0.66292245,132.6,132.58,0.5]
[1767399487572,0.66292245,132.61,132.58,0.5]
[1767399487775,0.66292245,132.61,132.58,7.54223839]
[1767399490468,0.66292245,132.61,132.56,18.85811617]
[1767399490469,0.66292245,132.61,132.56,7.54337005]
[1767399490653,0.66292245,132.59,132.56,7.54337005]
[1767399493047,0.66292245,132.59,132.55,3.44592562]
[1767399494657,0.66292245,132.59,132.56,7.54375377]
[1767399495969,0.66292245,132.61,132.57,3.44592562]
[1767399496166,0.66292245,132.63,132.59,3.44592562]
[1767399497668,0.66292245,132.63,132.59,10.98760833]
[1767399498352,0.66292245,132.63,132.6,3.44592562]
[1767399499584,0.66292245,132.63,132.6,10.98701441]
[1767399501079,0.66292245,132.63,132.6,7.54108879]
[1767399501775,0.66292245,132.63,132.6,10.98701441]
[1767399503094,14.42292245,132.64,132.61,3.44592562]
[1767399503379,0.66292245,132.64,132.61,3.44592562]
[1767399503771,0.66292245,132.64,132.62,7.54034082]
[1767399503986,0.66292245,132.64,132.62,7.51056064]
[1767399504178,0.66292245,132.65,132.62,10.95648626]
[1767399504559,0.66292245,132.65,132.62,10.92677392]
[1767399505684,0.66292245,132.65,132.6,29.84109906]
[1767399513768,0.69632982,132.64,132.6,29.84109906]
[1767399514465,0.69632982,132.64,132.6,28.59694676]
[1767399517169,0.69632982,132.64,132.6,9.74325144]
[1767399517578,0.69632982,132.63,132.58,9.74402217]
[1767399517889,0.69632982,132.62,132.58,9.74402217]
[1767399519477,0.69632982,132.62,132.59,9.74364349]
[1767399528375,0.69632982,132.62,132.59,7.54187017]
[1767399528689,0.69632982,132.62,132.59,9.74364349]
[1767399529898,0.69632982,132.62,132.59,7.54187017]
[1767399537809,0.69632982,132.63,132.59,7.54187017]
[1767399539397,0.69632982,132.63,132.6,2.20177332]
[1767399541111,0.69632982,132.63,132.61,7.54090943]
[1767399543113,0.1,132.68,132.63,8.20780432]
[1767399543299,5.64518919,132.67,132.63,10.40957764]
[1767399543493,5.64518919,132.66,132.63,10.40957764]
[1767399543690,0.1,132.68,132.63,10.40957764]
[1767399543890,5.64384042,132.67,132.63,10.40957764]
[1767399544094,5.64384042,132.66,132.63,10.40957764]
[1767399544296,2.30177332,132.68,132.63,7.53977229]
[1767399544509,10.72312765,132.67,132.63,7.53977229]
[1767399544712,5.64258219,132.66,132.63,7.53977229]
[1767399545012,2.30177332,132.68,132.63,7.53977229]
[1767399545197,0.68798369,132.66,132.63,7.53977229]
[1767399548315,0.68798369,132.66,132.63,9.74154561]
[1767399549823,0.68798369,132.67,132.64,0.66803203]
[1767399552421,0.68798369,132.67,132.64,8.20681884]
[1767399555699,0.68798369,132.67,132.64,7.53878681]
[1767399565429,0.68798369,132.67,132.64,9.74056013]
[1767399568532,0.68798369,132.67,132.64,10.43688995]
[1767399568828,0.68798369,132.67,132.64,9.74056013]
[1767399571919,2.20177332,132.65,132.61,7.54064079]
[1767399572325,2.20177332,132.65,132.6,0.70627022]
[1767399572326,2.20177332,132.64,132.6,0.70627022]
[1767399572629,0.14445637,132.62,132.59,8.2479706]
[1767399573310,0.70212167,132.61,132.58,8.24888395]
[1767399573921,0.15003302,132.6,132.58,7.54261373]
[1767399574118,0.15003302,132.6,132.56,2.20177332]
[1767399574119,2.35180634,132.6,132.56,0.70627022]
[1767399574408,0.69660078,132.59,132.56,0.70627022]
[1767399575132,4.13972934,132.59,132.56,0.70627022]
[1767399575729,3.44312856,132.59,132.56,0.70627022]
[1767399578217,3.44312856,132.59,132.56,8.24990342]
[1767399580438,3.41312856,132.59,132.56,8.24990342]
[1767399583230,3.55758493,132.59,132.56,8.24990342]
[1767399586521,3.52758493,132.59,132.56,8.24990342]
[1767399587036,32.61193503,132.62,132.57,0.70627022]
[1767399587228,3.44312856,132.6,132.57,0.70627022]
[1767399587434,3.58758493,132.6,132.57,0.70627022]
[1767399591560,3.44312856,132.59,132.57,0.70627022]
[1767399591739,4.14525023,132.59,132.56,7.5436332]
[1767399591931,3.44312856,132.58,132.56,8.24990342]
[1767399592427,4.14525023,132.59,132.56,8.24990342]
[1767399596527,4.14525023,132.59,132.57,0.70627022]
[1767399611454,0.70212167,132.59,132.57,0.70627022]
[1767399614545,0.67212167,132.59,132.57,0.70627022]
[1767399616449,4.11525023,132.59,132.57,0.70627022]
[1767399618360,10.74547173,132.58,132.57,0.70627022]
[1767399618558,10.71547173,132.58,132.57,0.70627022]
[1767399619362,5.09014147,132.58,132.57,0.70627022]
[1767399620976,5.09014147,132.58,132.56,0.6741353]
[1767399621161,0.67212167,132.59,132.56,0.6741353]
[1767399621362,5.09028047,132.58,132.56,0.6741353]
[1767399621551,0.67212167,132.59,132.56,0.6741353]
[1767399621751,5.09031264,132.58,132.56,0.6741353]
[1767399621952,0.67212167,132.59,132.56,0.6741353]
[1767399622252,5.09031264,132.58,132.56,8.21782038]
[1767399622452,0.67212167,132.59,132.56,8.21782038]
[1767399622765,5.09038315,132.58,132.56,8.21782038]
[1767399623061,0.67212167,132.59,132.56,8.21782038]
[1767399623260,5.09038169,132.58,132.56,8.21782038]
[1767399623476,0.67212167,132.59,132.56,8.21782038]
[1767399623656,5.09045769,132.58,132.56,8.21782038]
[1767399623857,0.67212167,132.59,132.56,8.21782038]
[1767399626076,4.11525023,132.59,132.56,8.21782038]
[1767399626279,0.15003302,132.58,132.56,8.21782038]
[1767399627875,3.44312856,132.59,132.56,8.21782038]
[1767399628175,4.11884804,132.59,132.56,8.21782038]
[1767399630278,0.67571948,132.59,132.56,8.21782038]
[1767399630588,5.65765846,132.58,132.56,8.21782038]
[1767399630759,0.67571948,132.59,132.56,8.21782038]
[1767399630959,5.65765846,132.58,132.56,8.21782038]
[1767399631166,0.67571948,132.59,132.56,8.21782038]
[1767399631384,5.65803512,132.58,132.56,8.21782038]
[1767399631680,0.67571948,132.59,132.56,8.21782038]
[1767399631979,5.65803512,132.58,132.56,8.21782038]
[1767399632181,0.67571948,132.59,132.56,8.21782038]
[1767399632383,5.65811776,132.58,132.56,8.21782038]
[1767399632581,0.67571948,132.59,132.56,8.21782038]
[1767399632785,5.65811614,132.58,132.56,8.21782038]
[1767399632985,8.46728996,132.64,132.54,48.68951085]
[1767399632986,5.64016898,132.63,132.57,17.95744703]
[1767399633182,0.67800298,132.65,132.62,3.44312856]
[1767399633487,11.08052854,132.68,132.62,4.12246136]
[1767399633871,11.08052854,132.68,132.63,0.6793328]
[1767399634273,3.54312856,132.68,132.63,0.6793328]
[1767399635373,0.67800298,132.67,132.63,8.21853762]
[1767399635578,11.08006185,132.68,132.64,0.69275563]
[1767399635579,3.44312856,132.68,132.64,0.69275563]
[1767399636484,2.20077055,132.68,132.64,0.69275563]
[1767399637690,0.67800298,132.67,132.64,0.69275563]
[1767399637868,0.67800298,132.69,132.66,0.69275563]
[1767399638187,0.67800298,132.7,132.68,0.69275563]
[1767399638482,2.87877353,132.7,132.67,0.69275563]
[1767399639270,2.87877353,132.7,132.67,0.66423614]
[1767399639986,2.87877353,132.7,132.67,0.63601234]
[1767399640375,0.67800298,132.68,132.64,7.53885253]
[1767399642068,0.67800298,132.68,132.64,8.23160816]
[1767399643269,8.21493924,132.68,132.64,8.23160816]
[1767399644280,0.67800298,132.67,132.64,8.23160816]
[1767399645489,7.53693626,132.68,132.65,0.69275563]
[1767399647376,10.41570979,132.68,132.65,0.69275563]
[1767399647887,2.54073808,132.67,132.64,0.69275563]
[1767399648892,10.07835355,132.67,132.64,0.69275563]
[1767399650869,0.67462263,132.66,132.64,0.69275563]
[1767399651289,0.67130954,132.64,132.61,0.69275563]
[1767399651492,2.87208009,132.64,132.61,0.69275563]
[1767399652371,2.20077055,132.63,132.61,0.69275563]
[1767399652782,2.54736459,132.63,132.61,0.69275563]
[1767399654393,2.20077055,132.63,132.61,0.69275563]
[1767399655380,2.20077055,132.62,132.6,0.69275563]
[1767399660396,0.71335857,132.66,132.61,0.67930765]
[1767399660702,9.73908252,132.66,132.62,0.67930765]
[1767399661002,10.45150817,132.68,132.63,0.67930765]
[1767399662101,10.45150817,132.68,132.65,0.67930765]
[1767399663213,2.91412912,132.68,132.65,0.67930765]
[1767399663890,3.01412912,132.71,132.66,0.67930765]
[1767399664102,2.50573605,132.7,132.66,0.67930765]
[1767399664295,2.20077055,132.68,132.66,0.67930765]
[1767399665802,2.20077055,132.67,132.64,0.67930765]
[1767399666003,2.20077055,132.66,132.64,0.67930765]
[1767399666213,2.20077055,132.65,132.62,8.21943972]
[1767399667110,2.20077055,132.65,132.63,0.67930765]
[1767399668507,7.85113672,132.66,132.63,0.67930765]
[1767399668714,2.20077055,132.65,132.63,0.67930765]
[1767399669005,2.20077055,132.65,132.62,0.67930765]
[1767399669006,2.20077055,132.64,132.62,0.67930765]
[1767399669981,10.44079598,132.65,132.62,0.67930765]
[1767399670189,9.73944702,132.65,132.62,0.67930765]
[1767399670513,2.20077055,132.65,132.62,0.67930765]
[1767399670719,2.20077055,132.65,132.63,0.67930765]
[1767399671509,8.25168622,132.66,132.63,0.67930765]
[1767399671693,2.20077055,132.65,132.63,0.67930765]
[1767399673093,0.3090086,132.63,132.57,0.67930765]
[1767399673400,2.20077055,132.59,132.57,0.67930765]
[1767399673801,2.20077055,132.6,132.57,0.67930765]
[1767399674133,2.20077055,132.6,132.58,0.67930765]
[1767399675417,2.20077055,132.59,132.57,0.67930765]
[1767399681822,2.20077055,132.59,132.56,8.2228414]
[1767399682118,2.20077055,132.59,132.57,0.67930765]
[1767399682521,2.20077055,132.59,132.56,0.67930765]
[1767399684802,2.20077055,132.59,132.56,8.22297343]
[1767399685125,2.20077055,132.59,132.57,0.67930765]
[1767399686126,2.20077055,132.59,132.56,0.67930765]
[1767399686811,2.80410951,132.59,132.56,0.67930765]
[1767399689428,2.20077055,132.59,132.57,0.65727659]
[1767399691027,8.1500106,132.6,132.57,0.65727659]
[1767399691230,2.20077055,132.59,132.57,0.65727659]
[1767399692211,9.74283538,132.59,132.57,0.65727659]
[1767399692728,2.20077055,132.59,132.57,0.65727659]
[1767399693025,2.20077055,132.58,132.56,0.65727659]
[1767399693229,2.80410951,132.58,132.55,8.20138741]
[1767399693725,2.80410951,132.58,132.55,0.65727659]
[1767399693930,10.34675938,132.58,132.55,0.65727659]
[1767399696535,10.98694067,132.58,132.55,0.65727659]
[1767399697032,3.4442908,132.58,132.55,0.65727659]
[1767399698526,10.98694663,132.58,132.55,0.65727659]
[1767399698731,3.4442908,132.63,132.58,0.65727659]
[1767399698910,0.6084333,132.64,132.59,0.65727659]
[1767399698911,4.0527241,132.64,132.59,0.65727659]
[1767399699112,11.59216348,132.64,132.6,0.65727659]
[1767399699326,8.14787268,132.64,132.6,0.65727659]
[1767399699631,8.14714205,132.65,132.61,0.65727659]
[1767399699833,8.14714205,132.65,132.62,0.65727659]
[1767399700132,7.53870875,132.65,132.62,0.65727659]
[1767399700326,7.63770875,132.65,132.62,0.65727659]
[1767399700515,7.63770875,132.65,132.62,0.61957415]
[1767399702839,7.53870875,132.65,132.62,0.61957415]
[1767399704343,7.63706723,132.66,132.62,0.61957415]
[1767399704828,11.08135803,132.66,132.62,0.61957415]
[1767399705843,10.98235803,132.66,132.63,0.65727659]
[1767399706223,11.08135803,132.66,132.63,0.65727659]
[1767399706633,41.30800148,132.69,132.63,7.53952403]
[1767399706837,11.75483557,132.71,132.63,7.53952403]
[1767399707041,8.31054477,132.71,132.66,3.4442908]
[1767399708025,8.31054477,132.71,132.66,10.98190167]
[1767399708530,8.31054477,132.71,132.67,0.65727659]
[1767399709043,11.75483557,132.71,132.67,0.65727659]
[1767399709437,11.75483557,132.71,132.67,0.62929396]
[1767399709645,11.75483557,132.71,132.67,8.1666472]
[1767399710021,8.31054477,132.71,132.67,8.1666472]
[1767399711739,8.31054477,132.71,132.68,0.65727659]
[1767399711938,8.31054477,132.71,132.68,0.62760215]
[1767399716445,7.63541039,132.71,132.68,0.62760215]
[1767399716656,0.1,132.71,132.69,0.65727659]
[1767399717151,0.1,132.71,132.68,8.19404962]
[1767399717842,0.2099159,132.71,132.68,8.19404962]
[1767399721651,0.1,132.71,132.7,0.7076819]
[1767399721858,0.1,132.71,132.7,4.1519727]
[1767399722057,0.1,132.71,132.7,0.7076819]
[1767399722438,0.1,132.73,132.71,0.7076819]
[1767399722640,0.1,132.73,132.71,4.1519727]
[1767399723246,0.1,132.73,132.71,0.7076819]
[1767399724064,0.71609133,132.72,132.69,0.7076819]
[1767399724356,0.71609133,132.72,132.69,8.24396043]
[1767399724557,0.1,132.73,132.69,8.24396043]
[1767399724764,0.82120875,132.73,132.7,0.7076819]
[1767399725563,8.35541406,132.73,132.7,0.7076819]
[1767399726640,0.82120875,132.73,132.7,0.7076819]
[1767399726963,0.1,132.73,132.72,0.7076819]
[1767399729263,0.1,132.73,132.71,8.24285222]
[1767399733475,0.1,132.73,132.72,0.7076819]
[1767399738861,0.30846687,132.76,132.73,0.7076819]
[1767399740166,0.30846687,132.76,132.73,8.24169315]
[1767399742660,0.1,132.77,132.74,0.7076819]
[1767399742895,0.1,132.77,132.74,0.67856954]
[1767399743060,0.4372881,132.77,132.74,0.67856954]
[1767399743879,0.1,132.77,132.74,7.53332959]
[1767399744082,0.1,132.77,132.74,10.97762039]
[1767399744763,0.1,132.77,132.75,0.7076819]
[1767399746785,0.1,132.77,132.75,8.24062969]
[1767399748886,0.1,132.77,132.76,0.71208711]
[1767399749083,0.1,132.79,132.77,0.71208711]
[1767399749387,0.1,132.79,132.78,0.6731517]
[1767399749571,0.1,132.79,132.78,0.64431103]
[1767399750168,0.1,132.79,132.76,10.97668007]
[1767399750373,0.1,132.79,132.76,7.53238927]
[1767399751569,0.1,132.79,132.77,0.6731517]
[1767399751874,0.1,132.79,132.77,11.64916506]
[1767399754081,0.1,132.79,132.78,0.6731517]
[1767399754261,0.1,132.79,132.77,8.20487426]
[1767399756592,0.79056702,132.79,132.76,8.20536889]
[1767399756790,0.1,132.79,132.77,0.6731517]
[1767399760097,0.1,132.79,132.77,8.2049707]
[1767399767398,0.69056702,132.78,132.75,0.6731517]
[1767399769188,0.69056702,132.78,132.75,8.20593208]
[1767399769801,0.49517568,132.77,132.74,8.20644867]
[1767399770181,0.49517568,132.77,132.73,8.20708818]
[1767399770780,0.68861311,132.76,132.73,8.20708818]
[1767399774299,0.69256061,132.78,132.74,0.6731517]
[1767399774480,0.69256061,132.78,132.75,0.6731517]
[1767399776105,0.1,132.79,132.76,0.6731517]
[1767399776400,0.1,132.79,132.77,8.20497364]
[1767399781206,0.1,132.79,132.78,0.69107246]
[1767399781812,0.1,132.79,132.77,7.53182194]
[1767399782014,0.1,132.79,132.77,8.2228944]
[1767399789411,0.1,132.79,132.77,0.69107246]
[1767399791220,0.1,132.79,132.78,0.69107246]
[1767399791513,1e-08,132.79,132.78,8.22232716]
[1767399792489,1e-08,132.79,132.78,7.5312547]
[1767399793603,1e-08,132.79,132.77,8.22278041]
[1767399793604,0.68697215,132.79,132.77,8.22278041]
[1767399794408,0.68697215,132.79,132.77,0.69107246]
[1767399794718,0.68697215,132.79,132.76,8.22320116]
[1767399795516,0.68508977,132.77,132.75,0.69107246]
[1767399796213,0.68508977,132.77,132.75,8.22390051]
[1767399804622,0.68889274,132.78,132.75,8.22390051]
[1767399806735,0.49683322,132.77,132.73,0.69107246]
[1767399808210,0.49683322,132.77,132.74,0.65404644]
[1767399812735,0.49683322,132.77,132.74,8.18720487]
[1767399817633,0.72394591,132.79,132.76,0.6562764]
[1767399817840,1e-08,132.79,132.77,0.6562764]
[1767399819238,1e-08,132.79,132.78,8.1875311]
[1767399821846,1e-08,132.79,132.78,0.6562764]
[1767399822247,1e-08,132.79,132.76,0.6562764]
[1767399822547,4.15274904,132.79,132.76,0.6562764]
[1767399823547,0.46472256,132.78,132.76,0.6562764]
[1767399824345,10.96211353,132.79,132.76,0.6562764]
[1767399824526,11.68605943,132.79,132.76,0.6562764]
[1767399824726,0.46213059,132.78,132.76,0.6562764]
[1767399824927,0.46213059,132.78,132.75,8.18868626]
[1767399834153,0.72394591,132.79,132.76,0.6562764]
[1767399834348,1e-08,132.79,132.77,0.6562764]
[1767399843470,0.65624844,132.78,132.75,8.19432651]
[1767399844057,0.65624844,132.78,132.76,0.66153271]
[1767399844363,11.61847641,132.79,132.76,0.66153271]
[1767399846275,8.18705513,132.79,132.76,0.66153271]
[1767399847889,11.61847641,132.79,132.76,0.66153271]
[1767399851175,1e-08,132.79,132.77,0.66153271]
[1767399852760,32.56183505,132.83,132.76,7.53231645]
[1767399852761,8.18296829,132.86,132.79,3.43142128]
[1767399852955,5.63591079,132.85,132.81,3.43142128]
[1767399853155,0.65624844,132.86,132.83,0.66153271]
[1767399853656,14.49624844,132.87,132.83,0.66153271]
[1767399853851,0.52915107,132.86,132.83,0.66153271]
[1767399856374,17.92766972,132.87,132.84,0.66153271]
[1767399858054,17.92766972,132.87,132.81,22.25463587]
[1767399858055,0.65497747,132.85,132.82,0.66153271]
[1767399858277,17.92766972,132.87,132.83,0.66153271]
[1767399858673,17.92766972,132.87,132.83,8.1897546]
[1767399858877,17.92766972,132.87,132.84,0.66153271]
[1767399859264,17.92766972,132.87,132.84,8.18931837]
[1767399859464,0.1,132.87,132.85,0.66153271]
[1767399859686,0.62915107,132.87,132.84,8.18931837]
[1767399860184,0.62915107,132.87,132.85,0.66153271]
[1767399860560,0.62915107,132.87,132.84,0.66153271]
[1767399861582,0.1,132.87,132.85,0.66153271]
[1767399865566,1e-08,132.87,132.85,7.52708831]
[1767399866166,1e-08,132.87,132.86,0.66153271]
[1767399866676,1e-08,132.87,132.86,8.18825256]
[1767399868183,1e-08,132.87,132.86,11.61967384]
[1767399868674,1e-08,132.87,132.86,8.18825256]
[1767399869351,1e-08,132.87,132.86,7.52671985]
[1767399869473,1e-08,132.87,132.86,8.19342494]
[1767399871573,1e-08,132.87,132.85,7.52728641]
[1767399871774,1e-08,132.87,132.85,8.1939915]
[1767399871989,1e-08,132.87,132.86,0.66670509]
[1767399872783,1e-08,132.87,132.86,8.19342494]
[1767399872981,1e-08,132.87,132.84,22.25043884]
[1767399873706,1e-08,132.87,132.86,3.43142128]
[1767399874094,1e-08,132.9,132.86,3.43142128]
[1767399874300,1e-08,132.9,132.87,3.43142128]
[1767399874502,1e-08,132.9,132.86,17.17142128]
[1767399875015,1e-08,132.9,132.87,0.66670509]
[1767399876210,1e-08,132.9,132.88,8.19229208]
[1767399876400,1e-08,132.9,132.89,0.66670509]
[1767399877600,1e-08,132.9,132.89,8.19172578]
[1767399890326,0.70415341,132.9,132.89,7.52502069]
[1767399890630,0.70415341,132.9,132.88,7.52546874]
[1767399890996,0.70415341,132.9,132.87,8.19273957]
[1767399891197,0.7041534,132.89,132.86,83.13304197]
[1767399891419,0.7041534,132.89,132.86,21.93304197]
[1767399891625,0.7041534,132.89,132.87,7.52607126]
[1767399892126,1e-08,132.9,132.88,0.66670509]
[1767399894026,1e-08,132.9,132.88,8.19216283]
[1767399894027,0.70415341,132.9,132.88,8.19216283]
[1767399894208,0.1,132.93,132.88,7.52545774]
[1767399894413,2.19227365,132.91,132.88,7.52545774]
[1767399895025,0.1,132.93,132.87,26.34153683]
[1767399895220,2.19227365,132.92,132.87,26.34153683]
[1767399895607,0.1,132.93,132.88,0.66670509]
[1767399895813,2.29227365,132.93,132.88,0.66670509]
[1767399896219,2.29227365,132.93,132.87,29.20051557]
[1767399896425,0.7041534,132.92,132.88,0.66670509]
[1767399896811,2.99642705,132.93,132.9,0.66670509]
[1767399897213,0.8041534,132.93,132.9,0.66670509]
[1767399897417,2.99642705,132.93,132.9,0.66670509]
[1767399898120,0.8041534,132.93,132.9,0.66670509]
[1767399899431,0.8041534,132.93,132.9,8.19114056]
[1767399899729,2.99642705,132.93,132.9,8.19114056]
[1767399899902,0.8041534,132.93,132.9,8.19114056]
[1767399902025,0.44465134,132.92,132.9,0.66670509]
[1767399902228,0.65479457,132.91,132.88,0.71433764]
[1767399902437,2.84706822,132.91,132.88,0.71433764]
[1767399902749,2.19227365,132.9,132.87,8.24025565]
[1767399902914,2.19227365,132.91,132.88,0.71433764]
[1767399903230,26.42974872,132.93,132.88,0.71433764]
[1767399903407,2.19227365,132.92,132.88,0.71433764]
[1767399903812,2.19227365,132.92,132.89,0.71433764]